Workbook

Sheet Início
B1: Sobre o modelo
B2: Controle as suas despesas e economias mensais com este modelo.
B3: Insira os dados das Despesas na tabela e a Renda Mensal para calcular as Economias.
B4: O gráfico de roda mostrando despesas e economias é atualizado automaticamente.
B5: Observação:
B6: Encontre instruções adicionais na coluna A da planilha da RODA DE ORÇAMENTO. Esse texto foi oculto intencionalmente. Para remover o texto, selecione a coluna A e, depois, EXCLUIR. Para reexibir o texto, selecione a coluna A e, em seguida, altere a cor da fonte.
B7: Para saber mais sobre a tabela, pressione SHIFT e, em seguida, F10 dentro da tabela. Selecione a opção TABELA e, em seguida, TEXTO ALTERNATIVO.

Sheet Roda de orçamento
A1: Crie uma Roda de Orçamento nesta planilha. O título da planilha está na célula à direita e a dica na célula D1. Outras instruções úteis sobre como usar essa planilha estão nas células desta coluna. Aperte seta para baixo para começar. | B1: Roda de orçamento | D1: Preencha a tabela deste modelo. O gráfico mostrará seus gastos mensais em relação à sua renda mensal. Também calculará as porcentagens para mostrar quanto você economizou ou vai economizar.
A2: A Renda Mensal fica na célula à direita; o gráfico de roda mostrando as despesas e economias, na célula C2; e o rótulo Total de Economias na célula G2. | B2: Renda mensal | C2: Doughnut chart showing expenses and savings proportion is in this cell. | G2: Total de Economias
A3: Insira a Renda Mensal na célula à direita. O Total de Economias é calculado automaticamente na célula G3. A próxima instrução está na célula A6. | B3: R$ 5,738 | G3: =Economias -> R$ 2,777
G4: Valor calculado automaticamente
A6: Insira os dados na tabela de Despesas, começando na célula à direita. | B6: Despesas | C6: Categoria | D6: Valor | E6: Frequência | F6: Valor mensal | G6: % do Total
B7: Seguro | C7: Transporte | D7: R$ 300 | E7: Semestral | F7: =IF(Despesas[[#This Row],[Valor]]>0,IF(Despesas[[#This Row],[Frequência]]<>"",ROUND(IF(Despesas[[#This Row],[Frequência]]="Mensal",Despesas[Valor],IF(Despesas[[#This Row],[Frequência]]="Semanal",Despesas[[#This Row],[Valor]]*4,IF(Despesas[[#This Row],[Frequência]]="Trimestral",Despesas[[#This Row],[Valor]]/3,IF(Despesas[[#This Row],[Frequência]]="Semestral",Despesas[[#This Row],[Valor]]/6,IF(Despesas[[#This Row],[Frequência]]="Anual",Despesas[[#This Row],[Valor]]/12,IF(Despesas[[#This Row],[Frequência]]="Quinzenal",Despesas[[#This Row],[Valor]]*2,IF(Despesas[[#This Row],[Frequência]]="Bimestral",Despesas[[#This Row],[Valor]]/2,""))))))),0),""),"") -> R$ 50 | G7: =IF(Despesas[[#This Row],[Valor mensal]]<>"",Despesas[[#This Row],[Valor mensal]]/Receita,"") -> 1%
B8: Combustível | C8: Transporte | D8: R$ 25 | E8: Semanal | F8: =IF(Despesas[[#This Row],[Valor]]>0,IF(Despesas[[#This Row],[Frequência]]<>"",ROUND(IF(Despesas[[#This Row],[Frequência]]="Mensal",Despesas[Valor],IF(Despesas[[#This Row],[Frequência]]="Semanal",Despesas[[#This Row],[Valor]]*4,IF(Despesas[[#This Row],[Frequência]]="Trimestral",Despesas[[#This Row],[Valor]]/3,IF(Despesas[[#This Row],[Frequência]]="Semestral",Despesas[[#This Row],[Valor]]/6,IF(Despesas[[#This Row],[Frequência]]="Anual",Despesas[[#This Row],[Valor]]/12,IF(Despesas[[#This Row],[Frequência]]="Quinzenal",Despesas[[#This Row],[Valor]]*2,IF(Despesas[[#This Row],[Frequência]]="Bimestral",Despesas[[#This Row],[Valor]]/2,""))))))),0),""),"") -> R$ 100 | G8: =IF(Despesas[[#This Row],[Valor mensal]]<>"",Despesas[[#This Row],[Valor mensal]]/Receita,"") -> 2%
B9: Pagamento do carro | C9: Transporte | D9: R$ 200 | E9: Mensal | F9: =IF(Despesas[[#This Row],[Valor]]>0,IF(Despesas[[#This Row],[Frequência]]<>"",ROUND(IF(Despesas[[#This Row],[Frequência]]="Mensal",Despesas[Valor],IF(Despesas[[#This Row],[Frequência]]="Semanal",Despesas[[#This Row],[Valor]]*4,IF(Despesas[[#This Row],[Frequência]]="Trimestral",Despesas[[#This Row],[Valor]]/3,IF(Despesas[[#This Row],[Frequência]]="Semestral",Despesas[[#This Row],[Valor]]/6,IF(Despesas[[#This Row],[Frequência]]="Anual",Despesas[[#This Row],[Valor]]/12,IF(Despesas[[#This Row],[Frequência]]="Quinzenal",Despesas[[#This Row],[Valor]]*2,IF(Despesas[[#This Row],[Frequência]]="Bimestral",Despesas[[#This Row],[Valor]]/2,""))))))),0),""),"") -> R$ 200 | G9: =IF(Despesas[[#This Row],[Valor mensal]]<>"",Despesas[[#This Row],[Valor mensal]]/Receita,"") -> 3%
B10: Hipoteca | C10: Casa | D10: R$ 1,600 | E10: Mensal | F10: =IF(Despesas[[#This Row],[Valor]]>0,IF(Despesas[[#This Row],[Frequência]]<>"",ROUND(IF(Despesas[[#This Row],[Frequência]]="Mensal",Despesas[Valor],IF(Despesas[[#This Row],[Frequência]]="Semanal",Despesas[[#This Row],[Valor]]*4,IF(Despesas[[#This Row],[Frequência]]="Trimestral",Despesas[[#This Row],[Valor]]/3,IF(Despesas[[#This Row],[Frequência]]="Semestral",Despesas[[#This Row],[Valor]]/6,IF(Despesas[[#This Row],[Frequência]]="Anual",Despesas[[#This Row],[Valor]]/12,IF(Despesas[[#This Row],[Frequência]]="Quinzenal",Despesas[[#This Row],[Valor]]*2,IF(Despesas[[#This Row],[Frequência]]="Bimestral",Despesas[[#This Row],[Valor]]/2,""))))))),0),""),"") -> R$ 1,600 | G10: =IF(Despesas[[#This Row],[Valor mensal]]<>"",Despesas[[#This Row],[Valor mensal]]/Receita,"") -> 28%
B11: TV a cabo | C11: Casa | D11: R$ 60 | E11: Mensal | F11: =IF(Despesas[[#This Row],[Valor]]>0,IF(Despesas[[#This Row],[Frequência]]<>"",ROUND(IF(Despesas[[#This Row],[Frequência]]="Mensal",Despesas[Valor],IF(Despesas[[#This Row],[Frequência]]="Semanal",Despesas[[#This Row],[Valor]]*4,IF(Despesas[[#This Row],[Frequência]]="Trimestral",Despesas[[#This Row],[Valor]]/3,IF(Despesas[[#This Row],[Frequência]]="Semestral",Despesas[[#This Row],[Valor]]/6,IF(Despesas[[#This Row],[Frequência]]="Anual",Despesas[[#This Row],[Valor]]/12,IF(Despesas[[#This Row],[Frequência]]="Quinzenal",Despesas[[#This Row],[Valor]]*2,IF(Despesas[[#This Row],[Frequência]]="Bimestral",Despesas[[#This Row],[Valor]]/2,""))))))),0),""),"") -> R$ 60 | G11: =IF(Despesas[[#This Row],[Valor mensal]]<>"",Despesas[[#This Row],[Valor mensal]]/Receita,"") -> 1%
B12: Cinema | C12: Entretenimento | D12: R$ 70 | E12: Mensal | F12: =IF(Despesas[[#This Row],[Valor]]>0,IF(Despesas[[#This Row],[Frequência]]<>"",ROUND(IF(Despesas[[#This Row],[Frequência]]="Mensal",Despesas[Valor],IF(Despesas[[#This Row],[Frequência]]="Semanal",Despesas[[#This Row],[Valor]]*4,IF(Despesas[[#This Row],[Frequência]]="Trimestral",Despesas[[#This Row],[Valor]]/3,IF(Despesas[[#This Row],[Frequência]]="Semestral",Despesas[[#This Row],[Valor]]/6,IF(Despesas[[#This Row],[Frequência]]="Anual",Despesas[[#This Row],[Valor]]/12,IF(Despesas[[#This Row],[Frequência]]="Quinzenal",Despesas[[#This Row],[Valor]]*2,IF(Despesas[[#This Row],[Frequência]]="Bimestral",Despesas[[#This Row],[Valor]]/2,""))))))),0),""),"") -> R$ 70 | G12: =IF(Despesas[[#This Row],[Valor mensal]]<>"",Despesas[[#This Row],[Valor mensal]]/Receita,"") -> 1%
B13: Tênis | C13: Diversos | D13: R$ 300 | E13: Anual | F13: =IF(Despesas[[#This Row],[Valor]]>0,IF(Despesas[[#This Row],[Frequência]]<>"",ROUND(IF(Despesas[[#This Row],[Frequência]]="Mensal",Despesas[Valor],IF(Despesas[[#This Row],[Frequência]]="Semanal",Despesas[[#This Row],[Valor]]*4,IF(Despesas[[#This Row],[Frequência]]="Trimestral",Despesas[[#This Row],[Valor]]/3,IF(Despesas[[#This Row],[Frequência]]="Semestral",Despesas[[#This Row],[Valor]]/6,IF(Despesas[[#This Row],[Frequência]]="Anual",Despesas[[#This Row],[Valor]]/12,IF(Despesas[[#This Row],[Frequência]]="Quinzenal",Despesas[[#This Row],[Valor]]*2,IF(Despesas[[#This Row],[Frequência]]="Bimestral",Despesas[[#This Row],[Valor]]/2,""))))))),0),""),"") -> R$ 25 | G13: =IF(Despesas[[#This Row],[Valor mensal]]<>"",Despesas[[#This Row],[Valor mensal]]/Receita,"") -> 0%
B14: Ração de cachorro | C14: Diversos | D14: R$ 60 | E14: Mensal | F14: =IF(Despesas[[#This Row],[Valor]]>0,IF(Despesas[[#This Row],[Frequência]]<>"",ROUND(IF(Despesas[[#This Row],[Frequência]]="Mensal",Despesas[Valor],IF(Despesas[[#This Row],[Frequência]]="Semanal",Despesas[[#This Row],[Valor]]*4,IF(Despesas[[#This Row],[Frequência]]="Trimestral",Despesas[[#This Row],[Valor]]/3,IF(Despesas[[#This Row],[Frequência]]="Semestral",Despesas[[#This Row],[Valor]]/6,IF(Despesas[[#This Row],[Frequência]]="Anual",Despesas[[#This Row],[Valor]]/12,IF(Despesas[[#This Row],[Frequência]]="Quinzenal",Despesas[[#This Row],[Valor]]*2,IF(Despesas[[#This Row],[Frequência]]="Bimestral",Despesas[[#This Row],[Valor]]/2,""))))))),0),""),"") -> R$ 60 | G14: =IF(Despesas[[#This Row],[Valor mensal]]<>"",Despesas[[#This Row],[Valor mensal]]/Receita,"") -> 1%
B15: Seguro para animais | C15: Diversos | D15: R$ 70 | E15: Anual | F15: =IF(Despesas[[#This Row],[Valor]]>0,IF(Despesas[[#This Row],[Frequência]]<>"",ROUND(IF(Despesas[[#This Row],[Frequência]]="Mensal",Despesas[Valor],IF(Despesas[[#This Row],[Frequência]]="Semanal",Despesas[[#This Row],[Valor]]*4,IF(Despesas[[#This Row],[Frequência]]="Trimestral",Despesas[[#This Row],[Valor]]/3,IF(Despesas[[#This Row],[Frequência]]="Semestral",Despesas[[#This Row],[Valor]]/6,IF(Despesas[[#This Row],[Frequência]]="Anual",Despesas[[#This Row],[Valor]]/12,IF(Despesas[[#This Row],[Frequência]]="Quinzenal",Despesas[[#This Row],[Valor]]*2,IF(Despesas[[#This Row],[Frequência]]="Bimestral",Despesas[[#This Row],[Valor]]/2,""))))))),0),""),"") -> R$ 6 | G15: =IF(Despesas[[#This Row],[Valor mensal]]<>"",Despesas[[#This Row],[Valor mensal]]/Receita,"") -> 0%
B16: Supermercado | C16: Alimentação | D16: R$ 100 | E16: Semanal | F16: =IF(Despesas[[#This Row],[Valor]]>0,IF(Despesas[[#This Row],[Frequência]]<>"",ROUND(IF(Despesas[[#This Row],[Frequência]]="Mensal",Despesas[Valor],IF(Despesas[[#This Row],[Frequência]]="Semanal",Despesas[[#This Row],[Valor]]*4,IF(Despesas[[#This Row],[Frequência]]="Trimestral",Despesas[[#This Row],[Valor]]/3,IF(Despesas[[#This Row],[Frequência]]="Semestral",Despesas[[#This Row],[Valor]]/6,IF(Despesas[[#This Row],[Frequência]]="Anual",Despesas[[#This Row],[Valor]]/12,IF(Despesas[[#This Row],[Frequência]]="Quinzenal",Despesas[[#This Row],[Valor]]*2,IF(Despesas[[#This Row],[Frequência]]="Bimestral",Despesas[[#This Row],[Valor]]/2,""))))))),0),""),"") -> R$ 400 | G16: =IF(Despesas[[#This Row],[Valor mensal]]<>"",Despesas[[#This Row],[Valor mensal]]/Receita,"") -> 7%
B17: Café | C17: Alimentação | D17: R$ 25 | E17: Semanal | F17: =IF(Despesas[[#This Row],[Valor]]>0,IF(Despesas[[#This Row],[Frequência]]<>"",ROUND(IF(Despesas[[#This Row],[Frequência]]="Mensal",Despesas[Valor],IF(Despesas[[#This Row],[Frequência]]="Semanal",Despesas[[#This Row],[Valor]]*4,IF(Despesas[[#This Row],[Frequência]]="Trimestral",Despesas[[#This Row],[Valor]]/3,IF(Despesas[[#This Row],[Frequência]]="Semestral",Despesas[[#This Row],[Valor]]/6,IF(Despesas[[#This Row],[Frequência]]="Anual",Despesas[[#This Row],[Valor]]/12,IF(Despesas[[#This Row],[Frequência]]="Quinzenal",Despesas[[#This Row],[Valor]]*2,IF(Despesas[[#This Row],[Frequência]]="Bimestral",Despesas[[#This Row],[Valor]]/2,""))))))),0),""),"") -> R$ 100 | G17: =IF(Despesas[[#This Row],[Valor mensal]]<>"",Despesas[[#This Row],[Valor mensal]]/Receita,"") -> 2%
B18: Equip. de escalada | C18: Entretenimento | D18: R$ 170 | E18: Anual | F18: =IF(Despesas[[#This Row],[Valor]]>0,IF(Despesas[[#This Row],[Frequência]]<>"",ROUND(IF(Despesas[[#This Row],[Frequência]]="Mensal",Despesas[Valor],IF(Despesas[[#This Row],[Frequência]]="Semanal",Despesas[[#This Row],[Valor]]*4,IF(Despesas[[#This Row],[Frequência]]="Trimestral",Despesas[[#This Row],[Valor]]/3,IF(Despesas[[#This Row],[Frequência]]="Semestral",Despesas[[#This Row],[Valor]]/6,IF(Despesas[[#This Row],[Frequência]]="Anual",Despesas[[#This Row],[Valor]]/12,IF(Despesas[[#This Row],[Frequência]]="Quinzenal",Despesas[[#This Row],[Valor]]*2,IF(Despesas[[#This Row],[Frequência]]="Bimestral",Despesas[[#This Row],[Valor]]/2,""))))))),0),""),"") -> R$ 14 | G18: =IF(Despesas[[#This Row],[Valor mensal]]<>"",Despesas[[#This Row],[Valor mensal]]/Receita,"") -> 0%
B19: Mensal. da academia | C19: Diversos | D19: R$ 60 | E19: Mensal | F19: =IF(Despesas[[#This Row],[Valor]]>0,IF(Despesas[[#This Row],[Frequência]]<>"",ROUND(IF(Despesas[[#This Row],[Frequência]]="Mensal",Despesas[Valor],IF(Despesas[[#This Row],[Frequência]]="Semanal",Despesas[[#This Row],[Valor]]*4,IF(Despesas[[#This Row],[Frequência]]="Trimestral",Despesas[[#This Row],[Valor]]/3,IF(Despesas[[#This Row],[Frequência]]="Semestral",Despesas[[#This Row],[Valor]]/6,IF(Despesas[[#This Row],[Frequência]]="Anual",Despesas[[#This Row],[Valor]]/12,IF(Despesas[[#This Row],[Frequência]]="Quinzenal",Despesas[[#This Row],[Valor]]*2,IF(Despesas[[#This Row],[Frequência]]="Bimestral",Despesas[[#This Row],[Valor]]/2,""))))))),0),""),"") -> R$ 60 | G19: =IF(Despesas[[#This Row],[Valor mensal]]<>"",Despesas[[#This Row],[Valor mensal]]/Receita,"") -> 1%
B20: Fone de ouvido | C20: Entretenimento | D20: R$ 50 | E20: Anual | F20: =IF(Despesas[[#This Row],[Valor]]>0,IF(Despesas[[#This Row],[Frequência]]<>"",ROUND(IF(Despesas[[#This Row],[Frequência]]="Mensal",Despesas[Valor],IF(Despesas[[#This Row],[Frequência]]="Semanal",Despesas[[#This Row],[Valor]]*4,IF(Despesas[[#This Row],[Frequência]]="Trimestral",Despesas[[#This Row],[Valor]]/3,IF(Despesas[[#This Row],[Frequência]]="Semestral",Despesas[[#This Row],[Valor]]/6,IF(Despesas[[#This Row],[Frequência]]="Anual",Despesas[[#This Row],[Valor]]/12,IF(Despesas[[#This Row],[Frequência]]="Quinzenal",Despesas[[#This Row],[Valor]]*2,IF(Despesas[[#This Row],[Frequência]]="Bimestral",Despesas[[#This Row],[Valor]]/2,""))))))),0),""),"") -> R$ 4 | G20: =IF(Despesas[[#This Row],[Valor mensal]]<>"",Despesas[[#This Row],[Valor mensal]]/Receita,"") -> 0%
B21: Corte de cabelo | C21: Diversos | D21: R$ 70 | E21: Mensal | F21: =IF(Despesas[[#This Row],[Valor]]>0,IF(Despesas[[#This Row],[Frequência]]<>"",ROUND(IF(Despesas[[#This Row],[Frequência]]="Mensal",Despesas[Valor],IF(Despesas[[#This Row],[Frequência]]="Semanal",Despesas[[#This Row],[Valor]]*4,IF(Despesas[[#This Row],[Frequência]]="Trimestral",Despesas[[#This Row],[Valor]]/3,IF(Despesas[[#This Row],[Frequência]]="Semestral",Despesas[[#This Row],[Valor]]/6,IF(Despesas[[#This Row],[Frequência]]="Anual",Despesas[[#This Row],[Valor]]/12,IF(Despesas[[#This Row],[Frequência]]="Quinzenal",Despesas[[#This Row],[Valor]]*2,IF(Despesas[[#This Row],[Frequência]]="Bimestral",Despesas[[#This Row],[Valor]]/2,""))))))),0),""),"") -> R$ 70 | G21: =IF(Despesas[[#This Row],[Valor mensal]]<>"",Despesas[[#This Row],[Valor mensal]]/Receita,"") -> 1%
B22: Videogames | C22: Entretenimento | D22: R$ 100 | E22: Mensal | F22: =IF(Despesas[[#This Row],[Valor]]>0,IF(Despesas[[#This Row],[Frequência]]<>"",ROUND(IF(Despesas[[#This Row],[Frequência]]="Mensal",Despesas[Valor],IF(Despesas[[#This Row],[Frequência]]="Semanal",Despesas[[#This Row],[Valor]]*4,IF(Despesas[[#This Row],[Frequência]]="Trimestral",Despesas[[#This Row],[Valor]]/3,IF(Despesas[[#This Row],[Frequência]]="Semestral",Despesas[[#This Row],[Valor]]/6,IF(Despesas[[#This Row],[Frequência]]="Anual",Despesas[[#This Row],[Valor]]/12,IF(Despesas[[#This Row],[Frequência]]="Quinzenal",Despesas[[#This Row],[Valor]]*2,IF(Despesas[[#This Row],[Frequência]]="Bimestral",Despesas[[#This Row],[Valor]]/2,""))))))),0),""),"") -> R$ 100 | G22: =IF(Despesas[[#This Row],[Valor mensal]]<>"",Despesas[[#This Row],[Valor mensal]]/Receita,"") -> 2%
B23: Roupas | C23: Diversos | D23: R$ 500 | E23: Anual | F23: =IF(Despesas[[#This Row],[Valor]]>0,IF(Despesas[[#This Row],[Frequência]]<>"",ROUND(IF(Despesas[[#This Row],[Frequência]]="Mensal",Despesas[Valor],IF(Despesas[[#This Row],[Frequência]]="Semanal",Despesas[[#This Row],[Valor]]*4,IF(Despesas[[#This Row],[Frequência]]="Trimestral",Despesas[[#This Row],[Valor]]/3,IF(Despesas[[#This Row],[Frequência]]="Semestral",Despesas[[#This Row],[Valor]]/6,IF(Despesas[[#This Row],[Frequência]]="Anual",Despesas[[#This Row],[Valor]]/12,IF(Despesas[[#This Row],[Frequência]]="Quinzenal",Despesas[[#This Row],[Valor]]*2,IF(Despesas[[#This Row],[Frequência]]="Bimestral",Despesas[[#This Row],[Valor]]/2,""))))))),0),""),"") -> R$ 42 | G23: =IF(Despesas[[#This Row],[Valor mensal]]<>"",Despesas[[#This Row],[Valor mensal]]/Receita,"") -> 1%

Sheet Dados (hidden)
A1: Esta planilha deve permanecer oculta
A2: Categorias | B2: Quantidade por categoria | C2: Porcentagem do total | D2: Frequência | E2: Poupança
A3: Casa | B3: =IF(SUMIF(Despesas[Categoria],"Casa",Despesas[Valor mensal])>0,SUMIF(Despesas[Categoria],"Casa",Despesas[Valor mensal]),NA()) -> R$ 1,660.00 | C3: =IF(B3>0,B3/Receita,"") -> R$ 0.29 | D3: Semanal | E3: =Receita-SUM(Despesas[Valor mensal]) -> R$ 2,777.00
A4: Entretenimento | B4: =IF(SUMIF(Despesas[Categoria],"Entretenimento",Despesas[Valor mensal])>0,SUMIF(Despesas[Categoria],"Entretenimento",Despesas[Valor mensal]),NA()) -> R$ 188.00 | C4: =IF(B4>0,B4/Receita,"") -> R$ 0.03 | D4: Mensal
A5: Transporte | B5: =IF(SUMIF(Despesas[Categoria],"Transporte",Despesas[Valor mensal])>0,SUMIF(Despesas[Categoria],"Transporte",Despesas[Valor mensal]),NA()) -> R$ 350.00 | C5: R$ 0.06 | D5: Trimestral
A6: Alimentação | B6: =IF(SUMIF(Despesas[Categoria],"Alimentação",Despesas[Valor mensal])>0,SUMIF(Despesas[Categoria],"Alimentação",Despesas[Valor mensal]),NA()) -> R$ 500.00 | C6: R$ 0.09 | D6: Semestral
A7: Diversos | B7: =IF(SUMIF(Despesas[Categoria],"Diversos",Despesas[Valor mensal])>0,SUMIF(Despesas[Categoria],"Diversos",Despesas[Valor mensal]),NA()) -> R$ 263.00 | C7: R$ 0.05 | D7: Anual
A8: Poupança | B8: =IF(E3>0,E3,NA()) -> R$ 2,777.00 | C8: R$ 0.48 | D8: Quizenal
D9: Bimensal
B10: TOTAL: | C10: =SUM(C3:C8) -> R$ 1.00
